bitfinex-derivatives/quotes_ETHF0:USTF0_20250807
["timestamp","ask_amount","ask_price","bid_price","bid_amount"]
[1754590418311,0.3025,3815.8,3815.7,1.4998]
[1754590418605,42.08285,3815.8,3815.7,1.4998]
[1754590418814,42.08285,3815.8,3815.7,1.2117]
[1754590419106,60.23985,3815.8,3815.7,1.2117]
[1754590419313,60.23985,3815.8,3815.7,0.5935]
[1754590419711,60.23985,3815.8,3815.5,0.5935]
[1754590419712,0.54807,3815.6,3815.5,0.5935]
[1754590419908,0.54807,3815.6,3815.5,1.2117]
[1754590420104,58.956,3815.8,3815.6,0.52407]
[1754590420310,58.956,3815.8,3815.7,1.924]
[1754590420515,59.4123,3815.8,3815.7,1.924]
[1754590420713,40.8,3815.8,3815.7,1.924]
[1754590421114,41.2563,3815.8,3815.7,1.2117]
[1754590421314,41.2563,3815.8,3815.7,0.5935]
[1754590421514,59.4193,3815.8,3815.7,0.5935]
[1754590421724,59.4193,3815.8,3815.7,0.3552]
[1754590422019,0.7588,3815.5,3815.4,0.3713]
[1754590422517,0.2785,3815.0,3814.9,2.44816]
[1754590423112,41.0785,3815.0,3814.9,2.44816]
[1754590423317,41.60265,3815.0,3814.9,1.924]
[1754590423619,41.5352,3815.0,3814.9,1.924]
[1754590423915,0.7583,3814.8,3814.7,0.3521]
[1754590424119,18.9163,3814.8,3814.7,0.3521]
[1754590424516,18.9163,3814.8,3814.7,0.7099]
[1754590424711,18.9163,3814.8,3814.7,1.2078]
[1754590424915,18.9163,3814.8,3814.7,1.4899]
[1754590425311,18.9163,3814.8,3814.7,0.3521]
[1754590425516,59.7163,3814.8,3814.7,0.3521]
[1754590426318,59.7163,3814.8,3813.8,0.20763615]
[1754590426319,0.52428,3814.1,3813.9,1.2960033]
[1754590426518,0.82588,3814.1,3814.0,0.56140209]
[1754590426722,18.98788,3814.1,3814.0,0.3521]
[1754590426919,0.2854,3814.1,3814.0,1.08569629]
[1754590427223,59.7081,3814.1,3814.0,2.66529629]
[1754590427424,59.2514,3814.1,3814.0,2.66529629]
[1754590427716,59.7081,3814.1,3814.0,2.66529629]
[1754590427918,40.8,3814.1,3814.0,2.66529629]
[1754590428516,1.5693,3815.0,3814.9,2.01407]
[1754590428716,1.5693,3815.0,3814.9,2.45587]
[1754590429122,18.169,3815.0,3814.9,1.05606]
[1754590429327,18.169,3815.0,3814.9,1.30416]
[1754590429619,40.8,3815.0,3814.9,1.66196]
[1754590429925,40.8,3815.0,3814.9,2.45586]
[1754590431114,40.4201,3815.0,3814.9,2.45586]
[1754590431325,1.5864,3815.8,3815.7,2.17364]
[1754590431624,1.5864,3815.8,3815.7,2.45574]
[1754590431828,19.1519,3816.0,3815.9,2.45573]
[1754590432214,42.1578,3816.0,3815.9,2.45573]
[1754590432416,41.3302,3816.0,3815.9,2.45573]
[1754590433124,40.8,3816.0,3815.9,2.45573]
[1754590438118,40.8,3816.0,3815.9,2.09793]
[1754590438324,40.8,3816.0,3815.9,2.45573]
[1754590440432,41.6276,3816.0,3815.9,2.45573]
[1754590441430,40.8,3816.0,3815.9,2.45573]
[1754590442425,1.301,3817.1,3817.0,0.52388]
[1754590442635,1.9402,3817.1,3817.0,1.13148]
[1754590442834,20.0832,3817.1,3817.0,0.52388]
[1754590443132,1.5864,3817.1,3817.0,2.01378]
[1754590443332,1.5864,3817.1,3817.0,2.45558]
[1754590443636,42.7402,3817.1,3817.0,2.45558]
[1754590443829,42.3864,3817.1,3817.0,2.45558]
[1754590444229,42.7402,3817.1,3817.0,2.45558]
[1754590444728,42.7402,3817.1,3817.0,2.01378]
[1754590446037,42.7402,3817.1,3817.0,1.66168]
[1754590446234,42.7402,3817.1,3817.0,1.37958]
[1754590447039,60.8722,3817.1,3817.0,1.37958]
[1754590447237,60.8722,3817.1,3817.0,2.45558]
[1754590448236,42.7402,3817.1,3817.0,2.45558]
[1754590449638,42.1578,3817.1,3817.0,2.45558]
[1754590449836,42.5116,3817.1,3817.0,2.45558]
[1754590450236,41.3302,3817.1,3817.0,2.45558]
[1754590450436,40.8,3817.1,3817.0,2.45558]
[1754590450634,41.9814,3817.1,3817.0,1.37388]
[1754590450836,41.9814,3817.1,3817.0,0.52388]
[1754590451734,41.9814,3817.1,3816.3,1.30993]
[1754590451735,1.9402,3816.4,3816.3,2.10357]
[1754590451937,1.9402,3816.4,3816.3,0.52397]
[1754590452441,1.9402,3816.4,3816.1,0.52399]
[1754590452442,1.1814,3816.3,3816.1,0.52399]
[1754590452629,20.0572,3816.2,3816.1,0.52399]
[1754590452833,20.0602,3816.2,3816.1,0.52399]
[1754590453037,1.9193,3816.1,3816.0,0.52401]
[1754590453339,42.7193,3816.1,3816.0,0.52401]
[1754590453535,41.579,3816.1,3815.9,0.52402]
[1754590453734,1.1403,3815.9,3815.8,0.52403]
[1754590453935,0.52441,3813.2,3811.8,0.3617]
[1754590454147,9.316,3813.1,3812.7,3.05530493]
[1754590454336,41.1489,3812.8,3812.2,0.3617]
[1754590454534,59.19,3812.8,3811.5,0.175]
[1754590454735,40.8,3812.8,3812.7,3.87090493]
[1754590455341,40.8,3812.8,3812.7,4.0764542]
[1754590455841,18.401,3813.5,3812.9,0.7115]
[1754590456030,0.52434,3813.6,3813.5,1.1654]
[1754590456431,0.52434,3813.6,3813.5,4.22070493]
[1754590456631,0.52456,3812.0,3811.9,0.04563788]
[1754590456945,40.8,3812.0,3811.7,0.52459]
[1754590458243,40.8,3812.0,3810.9,0.94464635]
[1754590458244,40.8,3812.0,3811.0,1.31176]
[1754590458434,40.8,3812.0,3810.9,0.94464635]
[1754590458635,40.8,3812.0,3811.6,0.8156]
[1754590458839,40.8,3812.0,3811.8,0.8156]
[1754590459034,40.8,3812.0,3811.9,1.1654]
[1754590460655,40.8,3812.0,3811.9,1.2954]
[1754590461043,40.8,3812.0,3811.9,1.1654]
[1754590462846,39.8,3812.0,3811.9,1.1654]
[1754590463246,0.3489,3812.5,3812.4,0.52451]
[1754590463451,1.1192,3812.5,3812.4,1.68991]
[1754590463949,41.5694,3812.5,3812.4,1.68991]
[1754590464244,40.8,3812.5,3812.4,1.68991]
[1754590464852,40.8,3812.5,3812.4,2.46181]
[1754590466747,41.5694,3812.5,3812.4,2.46181]
[1754590466952,41.1489,3812.5,3812.4,2.46181]
[1754590467147,40.8,3812.5,3812.4,2.46181]
[1754590468955,1.1288,3813.2,3813.1,2.46171]
[1754590469458,1.8982,3813.2,3813.1,2.46171]
[1754590469756,42.6982,3813.2,3813.1,2.46171]
[1754590471159,42.6982,3813.2,3813.1,1.5756]
[1754590471657,42.3484,3813.2,3813.1,1.9373]
[1754590471860,41.0482,3813.2,3813.1,1.9373]
[1754590472056,40.8,3813.2,3813.1,1.9373]
[1754590473152,1.0176,3813.6,3813.5,0.52435]
[1754590473358,0.2482,3813.6,3813.5,2.46165]
[1754590474154,41.0482,3813.6,3813.5,2.46165]
[1754590474461,41.0482,3813.6,3813.5,2.670028]
[1754590475455,41.8176,3813.6,3813.5,2.670028]
[1754590476053,41.8176,3813.6,3813.5,2.46165]
[1754590476659,40.8,3813.6,3813.5,2.66960816]
[1754590477755,0.7703,3814.5,3814.4,0.52423]
[1754590477959,1.8982,3814.5,3814.4,0.52423]
[1754590478258,42.6982,3814.5,3814.4,0.52423]
[1754590478458,42.6982,3814.5,3814.4,2.46153]
[1754590479753,42.6982,3814.5,3814.4,1.12483]
[1754590479957,42.6982,3814.5,3814.4,0.52423]
[1754590481162,43.5206561,3814.5,3814.4,0.52423]
[1754590481458,43.5206561,3814.5,3814.4,1.64593]
[1754590481656,43.5206561,3814.5,3814.4,2.46153]
[1754590482967,41.8706561,3814.5,3814.4,2.46153]
[1754590483262,43.2115561,3814.5,3814.4,2.46153]
[1754590483463,2.254,3814.4,3814.3,0.52424]
[1754590483767,3.0764561,3814.4,3814.3,0.52424]
[1754590485162,3.0764561,3814.4,3814.3,1.84704]
[1754590485365,0.8224561,3814.4,3814.3,2.74314]
[1754590486564,1.3578,3814.9,3814.8,1.40977]
[1754590486865,43.87277777,3814.9,3814.8,2.26537]
[1754590487061,43.87277777,3814.9,3814.8,2.74307]
[1754590487367,43.87277777,3814.9,3814.8,2.26537]
[1754590487558,43.87277777,3814.9,3814.8,1.84697]
[1754590487965,43.87277777,3814.9,3814.8,0.52417]
[1754590488264,1.31056,3814.5,3811.8,2.62294]
[1754590488460,0.7358,3813.6,3813.4,0.52436]
[1754590488767,0.3133,3813.4,3813.3,1.0312]
[1754590488968,0.7358,3813.4,3813.3,1.0312]
[1754590489768,0.3133,3813.4,3813.3,1.3228]
[1754590490258,0.3133,3813.4,3813.3,2.2189]
[1754590490963,0.3133,3813.4,3813.3,1.8005]
[1754590492167,0.3133,3813.4,3813.3,2.2189]
[1754590492672,0.81462598,3813.4,3813.3,2.2189]
[1754590492876,1.12792598,3813.4,3813.3,2.2189]
[1754590493069,1.55042598,3813.4,3813.3,1.8005]
[1754590493572,1.12792598,3813.4,3813.3,2.2189]
[1754590494470,0.3133,3813.2,3813.1,1.8005]
[1754590494669,1.12792598,3813.2,3813.1,2.2189]
[1754590494864,1.12792598,3813.2,3813.1,1.7817]
[1754590495065,41.92792598,3813.2,3813.1,2.2189]
[1754590495372,41.61462598,3813.2,3813.1,2.2189]
[1754590500368,41.61462598,3813.2,3813.0,0.52441]
[1754590500574,1.55042598,3813.1,3813.0,1.00211]
[1754590500775,1.55042598,3813.1,3813.0,2.32491]
[1754590500986,1.12792598,3813.1,3813.0,2.74331]
[1754590501281,0.81462598,3813.1,3813.0,2.74331]
[1754590501676,0.35722598,3813.1,3813.0,2.74331]
[1754590501875,1.055,3814.1,3814.0,1.82827]
[1754590502081,1.31424679,3814.1,3814.0,1.304]
[1754590502382,42.2775,3814.1,3813.9,0.52429]
[1754590502684,1.055,3814.0,3813.9,1.40989]
[1754590503180,40.8,3814.1,3813.9,2.74319]
[1754590503385,40.8,3814.1,3814.0,2.2189]
[1754590505391,40.8,3814.1,3814.0,2.33363608]
[1754590505974,0.4528,3814.8,3814.1,1.31068]
[1754590506186,1.055,3814.8,3814.7,2.74309]
[1754590506389,1.055,3814.8,3814.7,2.85782608]
[1754590506586,41.855,3814.8,3814.7,2.85782608]
[1754590508288,42.2775,3814.8,3814.7,0.11473608]
[1754590508588,1.3674,3814.2,3814.1,0.52427]
[1754590508884,0.3674,3814.2,3814.1,2.32477]
[1754590509086,0.4287,3814.2,3814.1,2.74317]
[1754590509292,40.8538,3814.8,3814.7,2.2189]
[1754590510284,40.8538,3814.8,3814.6,0.52419]
[1754590510285,0.1398,3814.7,3814.6,0.52419]
[1754590510495,0.1398,3814.7,3814.6,0.4777]
[1754590511092,0.1398,3814.7,3814.2,0.4372]
[1754590511388,0.1398,3814.4,3814.3,0.4777]
[1754590511591,0.086,3814.2,3814.1,1.00196]
[1754590511794,0.086,3814.2,3814.1,0.4777]
[1754590511795,0.1398,3814.2,3814.1,0.4777]
[1754590511995,0.52427,3814.1,3813.6,0.4372]
[1754590512292,0.1398,3813.9,3813.8,1.002]
[1754590512695,40.9398,3813.9,3813.8,1.4392]
[1754590513000,40.9514,3813.9,3813.8,1.4392]
[1754590513293,40.9514,3813.9,3813.8,1.7308]
[1754590513495,40.9398,3813.9,3813.8,2.7488]
[1754590514087,40.9514,3813.9,3813.8,1.799]
[1754590514996,40.9514,3813.9,3813.8,2.2245]
[1754590516698,0.1163,3813.5,3813.4,1.87757]
[1754590516899,0.1701,3813.5,3813.4,2.30307]
[1754590517398,0.1701,3813.5,3813.4,2.76487]
[1754590519298,0.1585,3813.5,3813.4,1.55567]
[1754590519500,40.8,3813.9,3813.8,0.52431]
[1754590519696,40.8654,3813.9,3813.8,0.98931]
[1754590519897,40.8654,3813.9,3813.8,1.815]
[1754590520900,40.8654,3813.9,3813.8,0.7805]
[1754590521102,40.8654,3813.9,3813.8,0.4618]
[1754590521805,0.1701,3813.8,3813.7,0.52432]
[1754590522196,0.1701,3813.8,3813.7,1.45112]
[1754590522495,0.1701,3813.8,3813.7,1.76982]
[1754590522695,0.1701,3813.8,3813.7,2.33932]
[1754590522904,0.1701,3813.8,3813.7,2.76482]
[1754590523202,0.1585,3813.8,3813.7,2.76482]
[1754590523898,0.1701,3813.8,3813.7,2.76482]
[1754590524600,40.8,3813.9,3813.7,1.41252]
[1754590524802,40.8,3813.9,3813.8,2.2405]
[1754590525100,40.8538,3813.9,3813.8,2.2405]
[1754590525691,40.8654,3813.9,3813.8,2.2405]
[1754590526799,40.8654,3813.9,3813.8,0.4618]
[1754590527602,41.66480868,3813.9,3813.8,1.2455]
[1754590527800,41.66480868,3813.9,3813.8,1.815]
[1754590529103,41.66480868,3813.9,3813.8,0.4618]
[1754590529299,0.1047,3813.5,3813.4,0.465]
[1754590529503,1.31097,3813.3,3812.0,0.465]
[1754590529705,0.52447,3812.7,3812.5,0.3187]
[1754590529893,1.31103,3813.1,3812.5,0.4618]
[1754590529894,59.74448,3812.6,3812.5,0.4618]
[1754590531400,59.74448,3812.6,3812.5,1.2455]
[1754590531602,59.74448,3812.6,3812.5,1.815]
[1754590532005,59.22,3812.6,3812.5,1.815]
[1754590532306,41.32448,3812.6,3812.5,2.2405]
[1754590533510,41.32448,3812.6,3812.5,1.815]
[1754590533701,41.32448,3812.6,3812.0,1.41275]
[1754590533702,0.52455,3812.1,3812.0,1.41275]
[1754590533901,18.409,3812.2,3812.1,0.4618]
[1754590534106,18.96354,3812.2,3812.1,0.4618]
[1754590535204,59.76354,3812.2,3812.1,0.4618]
[1754590535508,59.75654,3812.2,3812.1,0.4618]
[1754590535704,59.75654,3812.2,3812.1,0.98634]
[1754590536008,59.232,3812.2,3812.1,0.4618]
[1754590536802,59.75654,3812.2,3812.0,0.52455]
[1754590537003,0.52456,3812.0,3811.9,0.52457]
[1754590537308,18.95856,3812.0,3811.9,0.4618]
[1754590537509,0.52458,3811.9,3811.8,0.52458]
[1754590537707,1.31144,3811.9,3811.0,1.0555]
[1754590537908,18.421,3811.8,3811.3,0.98644]
[1754590538204,0.52464,3811.5,3811.4,0.4618]
[1754590538407,18.425,3811.5,3811.4,0.98644]
[1754590538610,1.31129,3812.4,3811.5,0.4618]
[1754590538905,0.52458,3811.9,3811.8,1.815]
[1754590539206,18.94658,3811.9,3811.8,1.815]
[1754590539407,18.94658,3811.9,3811.8,0.4618]
[1754590539808,18.94658,3811.9,3811.3,0.4618]
[1754590540007,0.52459,3811.8,3811.6,0.5246]
[1754590540209,0.52459,3811.8,3811.7,0.4618]
[1754590540811,18.94759,3811.8,3811.7,0.4618]
[1754590541298,18.423,3811.8,3811.3,0.52465]
[1754590541499,0.5246,3811.7,3811.5,0.4618]
[1754590541705,0.52464,3811.4,3811.3,0.52465]
[1754590541905,18.418,3811.4,3811.3,0.98645]
[1754590542105,59.218,3811.4,3811.3,0.98645]
[1754590542308,59.218,3811.4,3811.3,0.4618]
[1754590542710,59.218,3811.4,3811.3,2.2405]
[1754590543412,40.8,3811.4,3811.3,0.4618]
[1754590543812,40.8,3811.4,3811.3,1.7738]
[1754590544007,40.8,3811.4,3811.3,2.2299]
[1754590544407,0.5247,3811.0,3810.9,0.94464635]
[1754590544617,18.409,3811.0,3810.5,0.52475]
[1754590544809,18.424,3810.9,3810.8,0.8689]
[1754590545018,1.31136,3812.2,3810.8,0.4561]
[1754590545316,0.52464,3811.5,3811.3,0.7296]
[1754590545518,18.429,3811.4,3811.3,0.4376]
[1754590545713,59.229,3811.4,3811.3,0.4376]
[1754590546107,40.8,3811.4,3811.3,0.7375]
[1754590546313,59.224,3811.4,3811.3,0.4376]
[1754590546611,40.8,3811.4,3811.3,2.2057]
[1754590547312,59.232,3811.4,3811.3,0.4376]
[1754590547511,59.75665,3811.4,3810.9,0.5247]
[1754590547819,0.79414356,3811.3,3809.9,0.4431]
[1754590548012,1.31172,3811.1,3810.2,0.2999]
[1754590548215,0.52479,3810.4,3810.3,0.4376]
[1754590548410,18.542,3810.4,3810.3,0.4376]
[1754590548609,0.52478,3810.5,3809.9,0.4431]
[1754590548806,0.52478,3810.5,3810.4,0.4376]
[1754590549013,59.86578,3810.5,3810.4,0.4376]
[1754590549213,0.5248,3810.3,3809.8,0.52485]
[1754590549508,0.52479,3810.4,3810.2,0.4376]
[1754590549709,0.52479,3810.4,3810.1,0.7375]
[1754590550007,0.52479,3810.4,3809.3,1.31232]
[1754590550008,0.79171441,3810.4,3809.3,0.52493]
[1754590550318,0.79171441,3810.4,3809.6,1.39379]
[1754590550514,0.52482,3810.1,3809.7,0.743]
[1754590550819,0.79171441,3810.4,3809.6,0.98098]
[1754590551012,0.79171441,3810.4,3809.9,0.4431]
[1754590551317,0.52482,3810.2,3810.1,0.4376]
[1754590551517,1.31653441,3810.2,3810.1,0.4376]
[1754590551720,0.79171441,3810.2,3807.0,38.2196]
[1754590551915,1.05534245,3810.2,3808.0,1.3368]
[1754590552111,40.8,3809.3,3809.2,0.2999]
[1754590552307,59.338,3809.3,3809.2,0.7375]
[1754590552720,40.8,3809.3,3809.2,2.2057]
[1754590553109,40.8,3809.3,3803.8,6.06712492]
[1754590553110,40.8,3809.3,3808.2,0.8807]
[1754590553323,40.8,3809.3,3809.2,1.325]
[1754590553624,60.17203284,3809.3,3809.2,2.2057]
[1754590554219,60.17403284,3809.3,3809.2,2.2057]
[1754590554414,60.16803284,3809.3,3809.2,2.2057]
[1754590554919,41.59003284,3809.3,3809.2,2.2057]
[1754590555108,40.8,3809.3,3809.2,2.2057]
[1754590555423,0.7215,3810.2,3810.1,1.3065]
[1754590555610,18.8601,3810.2,3810.1,2.2057]
[1754590555817,19.90933919,3810.2,3810.1,2.2057]
[1754590556320,60.70933919,3810.2,3810.1,2.2057]
[1754590556521,42.12933919,3810.2,3810.1,2.2057]
[1754590556823,41.86574011,3810.2,3810.1,2.2057]
[1754590557114,41.58564011,3810.2,3810.1,2.2057]
[1754590557512,1.40884862,3811.4,3810.3,1.3368]
[1754590557709,2.2143,3811.4,3811.3,0.7375]
[1754590558123,0.2639393,3811.5,3811.4,1.3368]
[1754590558324,0.2639393,3811.8,3810.8,1.3118]
[1754590558525,0.7053393,3811.8,3811.7,0.8807]
[1754590558829,0.8893,3811.8,3811.7,0.4376]
[1754590559019,41.2414,3811.8,3811.7,0.8937]
[1754590559221,41.95048188,3811.8,3811.7,1.3368]
[1754590560017,60.54648188,3811.8,3811.3,0.4376]
[1754590560218,0.26124988,3811.7,3811.1,0.52468]
[1754590560419,0.4479,3811.3,3811.2,1.3368]
[1754590560626,0.4479,3811.6,3811.4,0.4376]
[1754590560823,0.4479,3811.6,3811.5,1.3368]
[1754590561120,0.4479,3811.6,3811.2,0.52466]
[1754590561121,0.8893,3811.7,3811.2,0.4561]
[1754590561324,1.15060883,3811.7,3811.3,0.4376]
[1754590561515,1.15060883,3811.7,3810.3,1.31197]
[1754590561516,40.8,3811.8,3811.6,0.8992]
[1754590561721,40.8,3811.8,3811.7,0.8992]
[1754590561919,40.8,3811.8,3811.7,1.8614]
[1754590562328,41.06143561,3811.8,3811.7,1.8614]
[1754590562720,40.8,3811.8,3811.7,1.8614]
[1754590563528,40.8,3811.8,3811.7,1.3368]
[1754590564322,41.6893,3811.8,3811.7,1.3368]
[1754590565022,41.6893,3811.8,3811.7,2.2057]
[1754590565829,42.21389,3811.8,3811.7,2.2057]
[1754590566030,41.6893,3811.8,3811.7,2.2057]
[1754590571134,41.2479,3811.8,3811.7,2.2057]
[1754590571631,41.6893,3811.8,3811.7,2.2057]
[1754590572932,40.8,3811.8,3811.7,2.2057]
[1754590577731,18.497,3812.3,3811.7,2.2057]
[1754590578032,1.0426,3813.6,3813.5,0.52435]
[1754590578237,1.0426,3813.6,3813.5,1.5313]
[1754590578238,43.058,3813.6,3813.5,1.5313]
[1754590578529,43.84146292,3813.6,3813.5,1.8343]
[1754590578735,43.84146292,3813.6,3813.5,0.7823]
[1754590579034,2.258,3813.5,3813.4,1.30666]
[1754590579237,2.258,3813.5,3813.4,0.7823]
[1754590579238,2.60936292,3813.5,3813.4,0.7823]
[1754590579434,2.258,3813.5,3813.4,0.314]
[1754590579733,20.752,3813.5,3813.4,0.314]
[1754590580036,20.752,3813.5,3813.1,0.9107]
[1754590580037,19.93156,3813.5,3813.2,0.52439]
[1754590580338,1.7819,3813.2,3813.1,2.3047]
[1754590581134,42.5819,3813.2,3813.1,2.3047]
[1754590581329,43.058,3813.2,3813.1,1.3919]
[1754590581532,0.9132,3813.0,3812.8,0.52444]
[1754590581735,2.258,3812.9,3812.8,0.52444]
[1754590582128,1.3448,3812.8,3812.5,1.43519]
[1754590582336,2.258,3812.6,3812.5,1.74919]
[1754590583035,43.058,3812.6,3812.5,2.35879]
[1754590583232,42.5819,3812.6,3812.5,2.82919]
[1754590583636,40.8,3812.6,3812.5,2.82919]
[1754590584540,41.6687,3812.6,3812.5,2.82919]
[1754590584931,1.7819,3813.7,3813.6,1.091]
[1754590585136,1.7819,3813.7,3813.6,1.5593]
[1754590585834,42.5819,3813.7,3813.6,1.5593]
[1754590586035,43.058,3813.7,3813.6,0.314]
[1754590586236,43.84093376,3813.7,3813.6,0.7823]
[1754590587836,43.36483376,3813.7,3813.6,1.5593]
[1754590588039,40.8,3813.7,3813.6,1.0889]
[1754590588337,42.1448,3813.7,3813.6,1.5593]
[1754590588741,41.6687,3813.7,3813.6,1.0889]
[1754590588930,41.6687,3813.7,3813.6,1.5593]
[1754590589244,40.8,3813.7,3813.6,1.5593]
[1754590589941,0.492,3814.0,3813.9,1.066]
[1754590590145,0.2643,3814.0,3813.9,1.066]
[1754590591037,41.0643,3814.0,3813.9,1.066]
[1754590591235,41.5404,3814.0,3813.9,1.04114283]
[1754590591435,41.0643,3814.0,3813.9,1.04114283]
[1754590591938,41.5404,3814.0,3813.9,1.04114283]
[1754590592134,41.0643,3814.0,3813.9,1.04114283]
[1754590593035,1.3893,3815.0,3814.9,0.52416]
[1754590593246,2.258,3815.0,3814.9,0.52416]
[1754590593436,43.058,3815.0,3814.9,0.52416]
[1754590593638,42.1893,3815.0,3814.9,0.52416]
[1754590593842,40.8,3815.0,3814.9,0.52416]
[1754590594745,41.2761,3815.0,3814.9,0.52416]
[1754590595840,1.30993,3816.4,3814.9,0.52416]
[1754590595841,1.7819,3816.1,3816.0,0.52401]
[1754590596043,0.8687,3816.0,3815.1,1.31035]
[1754590596239,1.3453,3815.2,3815.1,0.52414]
[1754590596738,42.5819,3815.2,3815.1,0.52414]
[1754590596944,43.058,3815.2,3815.1,0.52414]
[1754590597637,41.5822,3815.2,3815.1,0.52414]
[1754590597841,1.8259,3815.9,3815.8,0.52404]
[1754590598047,2.258,3815.9,3815.8,0.52404]
[1754590598342,42.6259,3815.9,3815.8,0.52404]
[1754590598646,41.2761,3815.9,3815.8,0.52404]
[1754590599145,42.1448,3815.9,3815.8,0.52404]
[1754590599745,1.9519,3815.8,3815.7,0.52405]
[1754590599945,0.9132,3815.8,3815.2,1.31032]
[1754590600147,1.8259,3815.3,3815.2,0.52412]
[1754590600347,2.258,3815.3,3815.2,0.52412]
[1754590600645,1.2188,3815.3,3815.2,1.26952]
[1754590601238,2.258,3815.3,3815.2,1.26952]
[1754590601843,0.7822,3815.3,3815.2,1.26952]
[1754590602041,0.4761,3815.7,3815.6,1.26947]
[1754590602544,41.2761,3815.9,3815.8,1.26944]
[1754590602847,40.8,3815.9,3815.8,1.26944]
[1754590603048,42.95268833,3815.9,3815.8,1.32184]
[1754590603243,42.49618833,3815.9,3815.8,1.32184]
[1754590603442,42.95268833,3815.9,3815.8,0.52404]
[1754590603636,42.1777,3815.9,3815.8,0.52404]
[1754590604047,42.9527505,3815.9,3815.8,0.52404]
[1754590604349,41.57517786,3815.9,3815.7,0.52405]
[1754590604539,2.2909,3815.7,3815.6,0.52406]
[1754590604742,2.2909,3815.6,3815.5,0.52408]
[1754590604945,2.15296034,3815.6,3815.5,0.52408]
[1754590605146,42.95296034,3815.6,3815.5,0.52408]
[1754590605647,42.49646034,3815.6,3815.5,0.98068]
[1754590605947,41.57526034,3815.6,3815.5,0.98068]
[1754590606252,41.57526034,3815.6,3815.5,0.99318]
[1754590606655,42.03916034,3815.6,3815.5,0.99318]
[1754590606950,41.2639,3815.6,3815.5,0.98068]
[1754590607349,41.7212,3815.6,3815.5,0.52408]
[1754590607553,42.95367635,3815.6,3815.5,0.52408]
[1754590608138,0.4573,3815.5,3815.4,0.52409]
[1754590608341,19.28097635,3815.5,3815.2,0.52411]
[1754590608546,0.4573,3815.1,3814.7,1.31046]
[1754590608746,1.3777,3814.9,3814.8,0.52418]
[1754590608943,42.95367635,3814.9,3814.8,0.52418]
[1754590609157,41.95367635,3814.9,3814.8,0.52418]
[1754590609354,40.95367635,3814.9,3814.8,0.52418]
[1754590609756,40.95367635,3814.9,3814.7,0.52419]
[1754590609961,59.307,3814.9,3814.3,0.52424]
[1754590610155,0.52423,3814.5,3814.1,0.52427]
[1754590610365,19.03023,3814.5,3814.2,0.52425]
[1754590611165,0.9204,3814.4,3814.1,0.52427]
[1754590611351,1.3777,3814.3,3814.1,0.52427]
[1754590611661,1.3777,3814.0,3813.7,1.389]
[1754590611854,19.03023,3814.5,3814.2,0.52425]
[1754590612060,0.52423,3814.5,3814.2,0.52426]
[1754590612554,1.3777,3814.4,3814.2,0.52426]
[1754590612862,1.3777,3814.1,3813.9,0.5243]
[1754590613056,1.3777,3814.0,3813.9,0.5243]
[1754590613554,42.1777,3814.0,3813.9,0.5243]
[1754590614758,40.8,3814.0,3813.9,1.9133]
[1754590615356,42.1777,3814.0,3813.9,1.9133]
[1754590615556,42.1777,3814.0,3813.9,0.5243]
[1754590615952,0.52433,3813.8,3813.5,0.52435]
[1754590616153,1.3777,3813.7,3813.6,0.52433]
[1754590616355,1.3777,3813.6,3813.5,0.52435]
[1754590617461,19.8657,3813.9,3813.8,0.52432]
[1754590617761,1.3777,3813.9,3813.8,1.91332]
[1754590618156,1.3777,3813.9,3813.8,0.52432]
[1754590618957,1.3777,3813.9,3813.8,1.91332]
[1754590619658,1.3777,3813.9,3813.8,0.52432]
[1754590619858,40.8,3814.0,3813.8,1.91332]
[1754590620066,40.8,3814.0,3813.9,1.389]
[1754590620463,41.7212,3814.0,3813.9,1.389]
[1754590620666,42.1777,3814.0,3813.9,1.389]
[1754590620956,42.1777,3814.0,3813.9,0.4777]
[1754590621161,1.3777,3813.9,3813.8,0.52432]
[1754590621461,2.15069229,3813.9,3813.8,0.52432]
[1754590621660,2.15069229,3813.9,3813.8,0.96842]
[1754590621860,1.3777,3813.9,3813.8,1.91332]
[1754590622060,1.3777,3813.9,3813.8,0.96842]
[1754590622255,0.4565,3813.6,3813.0,1.389]
[1754590622455,0.4565,3813.2,3813.1,0.52441]
[1754590622666,1.3777,3813.2,3813.1,0.96851]
[1754590622864,0.52447,3812.8,3812.5,0.52449]
[1754590623164,1.3777,3812.9,3812.1,0.4672]
[1754590623467,0.9138,3812.6,3812.5,0.52449]
[1754590623657,1.3777,3812.6,3812.5,0.52449]
[1754590624166,42.1777,3812.6,3812.5,0.52449]
[1754590624366,40.8,3812.6,3812.5,1.91349]
[1754590626262,18.461,3813.5,3813.3,0.52439]
[1754590626460,1.3777,3813.4,3813.3,0.4672]
[1754590626766,18.98537,3813.5,3813.3,0.52438]
[1754590626962,0.52441,3813.2,3812.3,1.3113]
[1754590627167,1.3777,3813.0,3812.7,0.52446]
[1754590627369,1.3777,3812.9,3812.8,0.52445]
[1754590628071,0.52446,3812.8,3812.6,0.52448]
[1754590628263,0.52448,3812.7,3812.5,0.52449]
[1754590628465,1.3777,3812.6,3812.5,0.52449]
[1754590629274,0.4565,3812.4,3812.1,0.9218]
[1754590629466,0.98102,3812.4,3812.2,0.52454]
[1754590629770,2.88407038,3814.5,3812.2,0.52454]